[Event "ESP-chT 1st Division 2020"]
[Site "Padron"]
[Date "2020.10.05"]
[Round "3.20"]
[White "Alshameary Puente, Ismael"]
[Black "Pile, Richard"]
[Result "0-1"]
[ECO "E20"]
[WhiteElo "2373"]
[BlackElo "2450"]
[Annotator "ChessBase"]
[PlyCount "64"]
[EventDate "2020.10.01"]
[EventType "team-tourn"]
[EventCountry "ESP"]
[SourceTitle "playchess.com"]
[Source "ChessBase"]
[SourceQuality "1"]
[TimeControl "5400+30"]

1. d4 {[%emt 0:00:00]} Nf6 {[%emt 0:00:00]} 2. c4 {[%emt 0:00:00]} e6 {[%emt 0:00:00]} 3. Nc3 {[%emt 0:00:02]} Bb4 {[%emt 0:00:00]} 4. f3 {[%emt 0:00:31]} d5 {[%emt 0:02:43]} 5. a3 {[%emt 0:00:11]} Be7 {[%emt 0:05:31]} 6. e4 {[%emt 0:00:09]} dxe4 {[%emt 0:00:03]} 7. fxe4 {[%emt 0:00:05]} e5 {[%emt 0:00:05]} 8. d5 {[%emt 0:00:26]} Bc5 {[%emt 0:01:13]} 9. Nf3 {[%emt 0:03:12]} Bg4 {[%emt 0:00:42]} 10. h3 {[%emt 0:01:04]} Bxf3 {[%emt 0:00:05]} 11. Qxf3 {[%emt 0:00:05]} Nbd7 {[%emt 0:01:19]} 12. Bd3 {[%emt 0:01:58]} c6 {[%emt 0:09:31]} 13. Bd2 {[%emt 0:21:34]} a5 {[%emt 0:03:39]} 14. Bc2 {[%emt 0:10:06]} O-O {[%emt 0:03:44]} 15. Bg5 {[%emt 0:03:18]} Bd4 {[%emt 0:03:07]} 16. Rb1 {[%emt 0:09:48]} h6 {[%emt 0:13:56]} 17. Bh4 {[%emt 0:03:49]} a4 {[%emt 0:00:18]} 18. Ne2 {[%emt 0:02:26]} Qa5+ {[%emt 0:00:35]} 19. Kf1 {[%emt 0:01:17]} cxd5 {[%emt 0:06:25]} 20. cxd5 {[%emt 0:07:06]} Rac8 {[%emt 0:01:03]} 21. Bd3 {[%emt 0:08:55]} Nh7 {[%emt 0:15:00]} 22. Be1 {[%emt 0:05:05]} Qb6 {[%emt 0:00:13]} 23. h4 {[%emt 0:01:20]} f5 {[%emt 0:10:07]} 24. exf5 {[%emt 0:00:50]} Nhf6 {[%emt 0:00:18]} 25. Nxd4 {[%emt 0:12:43]} exd4 {[%emt 0:00:40]} 26. Bg3 {[%emt 0:00:23]} Rfe8 {[%emt 0:00:13]} 27. Bf4 {[%emt 0:00:16]} Ne5 {[%emt 0:00:49]} 28. Qd1 {[%emt 0:04:11]} Nxd5 {[%emt 0:00:41]} 29. g3 {[%emt 0:01:20]} Nxd3 {[%emt 0:04:32]} 30. Qxd3 {[%emt 0:00:06]} Nxf4 {[%emt 0:04:21]} 31. gxf4 {[%emt 0:00:05]} Re3 {[%emt 0:02:17]} 32. Qd1 {[%emt 0:00:15]} Qd6 {[%emt 0:02:03]} 0-1

[Event "ESP-chT 1st Division 2020"]
[Site "Padron"]
[Date "2020.10.05"]
[Round "3.21"]
[White "Hernando Rodrigo, Julio Antonio"]
[Black "Garrido Outon, Alex"]
[Result "1-0"]
[ECO "E71"]
[WhiteElo "2266"]
[BlackElo "2366"]
[Annotator "NA"]
[PlyCount "95"]
[EventDate "2020.10.01"]
[EventType "team-tourn"]
[EventCountry "ESP"]
[SourceTitle "playchess.com"]
[Source "ChessBase"]
[SourceQuality "1"]
[TimeControl "5400+30"]

1. d4 {[%emt 0:00:00]} Nf6 {[%emt 0:00:00]} 2. c4 {[%emt 0:00:00]} g6 {[%emt 0:00:10]} 3. Nc3 {[%emt 0:00:00]} Bg7 {[%emt 0:00:09]} 4. e4 {[%emt 0:00:06]} d6 {[%emt 0:00:22]} 5. h3 {[%emt 0:00:10]} O-O {[%emt 0:00:33]} 6. Nf3 {[%emt 0:00:27]} c5 {[%emt 0:00:39]} 7. d5 {[%emt 0:00:14]} e6 {[%emt 0:00:21]} 8. Bd3 {[%emt 0:00:14]} Na6 {[%emt 0:00:26]} 9. O-O {[%emt 0:00:20]} Nc7 {[%emt 0:01:00]} 10. Rb1 {[%emt 0:02:10]} Rb8 {[%emt 0:04:57]} 11. a4 {[%emt 0:04:58]} e5 {[%emt 0:07:08]} 12. a5 {[%emt 0:06:00]} Na6 {[%emt 0:03:51]} 13. Nb5 {[%emt 0:05:06]} Nb4 {[%emt 0:05:11]} 14. Nxa7 {[%emt 0:03:01]} Qxa5 {[%emt 0:05:49]} 15. Nb5 {[%emt 0:01:04]} Qb6 {[%emt 0:06:56]} 16. Ne1 {[%emt 0:02:17]} Nxd3 {[%emt 0:02:14]} 17. Qxd3 {[%emt 0:00:14]} Nxe4 {[%emt 0:01:02]} 18. Ra1 {[%emt 0:08:36]} f5 {[%emt 0:08:13]} 19. f3 {[%emt 0:08:32]} Ng3 {[%emt 0:04:04]} 20. Rf2 {[%emt 0:00:48]} Bd7 {[%emt 0:06:40]} 21. Kh2 {[%emt 0:09:46]} e4 {[%emt 0:05:13]} 22. Qb3 {[%emt 0:00:47]} Bxb5 {[%emt 0:04:53]} 23. Kxg3 {[%emt 0:00:44]} e3 {[%emt 0:05:16]} 24. Rf1 {[%emt 0:08:48]} Qd8 {[%emt 0:15:12]} 25. cxb5 {[%emt 0:14:21]} Be5+ {[%emt 0:02:15]} 26. f4 {[%emt 0:00:08]} Qg5+ {[%emt 0:00:02]} 27. Kh2 {[%emt 0:00:49]} Bxf4+ {[%emt 0:00:04]} 28. Kg1 {[%emt 0:07:52]} Rbe8 {[%emt 0:00:06]} 29. Rf3 {[%emt 0:01:50]} Re4 {[%emt 0:02:13]} 30. Ra4 {[%emt 0:05:54]} Rfe8 {[%emt 0:00:49]} 31. Nc2 {[%emt 0:04:15]} Qh4 {[%emt 0:01:00]} 32. Rxe4 {[%emt 0:01:18]} fxe4 {[%emt 0:00:09]} 33. Rxf4 {[%emt 0:01:35]} Qxf4 {[%emt 0:00:02]} 34. Bxe3 {[%emt 0:01:14]} Qf5 {[%emt 0:01:15]} 35. b6 {[%emt 0:00:16]} h5 {[%emt 0:01:52]} 36. Na3 {[%emt 0:02:59]} Rf8 {[%emt 0:01:30]} 37. Nb5 {[%emt 0:00:27]} Rf6 {[%emt 0:00:58]} 38. Nc3 {[%emt 0:00:30]} Qf1+ {[%emt 0:01:57]} 39. Kh2 {[%emt 0:00:02]} Qe1 {[%emt 0:00:18]} 40. Nxe4 {[%emt 0:00:41]} Rf1 {[%emt 0:01:18]} 41. Ng3 {[%emt 0:00:09]} Rf7 {[%emt 0:00:09]} 42. Qd3 {[%emt 0:01:12]} Kg7 {[%emt 0:02:56]} 43. Qe4 {[%emt 0:00:53]} Qd1 {[%emt 0:01:01]} 44. Bg5 {[%emt 0:00:35]} Qd4 {[%emt 0:00:50]} 45. Qe6 {[%emt 0:00:26]} c4 {[%emt 0:00:55]} 46. h4 {[%emt 0:00:38]} Qf2 {[%emt 0:00:30]} 47. Ne4 {[%emt 0:00:25]} Qf5 {[%emt 0:00:19]} 48. Nxd6 {[%emt 0:00:17]} 1-0

[Event "ESP-chT 1st Division 2020"]
[Site "Padron"]
[Date "2020.10.05"]
[Round "3.22"]
[White "Herrera Delgado, Alejandro"]
[Black "Hernando Rodrigo, Jose Maria"]
[Result "0-1"]
[ECO "B34"]
[WhiteElo "2280"]
[BlackElo "2311"]
[Annotator "NA"]
[PlyCount "90"]
[EventDate "2020.10.01"]
[EventType "team-tourn"]
[EventCountry "ESP"]
[SourceTitle "playchess.com"]
[Source "ChessBase"]
[SourceQuality "1"]
[TimeControl "5400+30"]

1. e4 {[%emt 0:00:00]} c5 {[%emt 0:00:00]} 2. Nf3 {[%emt 0:01:04]} Nc6 {[%emt 0:01:26]} 3. Nc3 {[%emt 0:00:30]} Nf6 {[%emt 0:00:35]} 4. d4 {[%emt 0:00:43]} cxd4 {[%emt 0:00:12]} 5. Nxd4 {[%emt 0:00:05]} e5 {[%emt 0:00:22]} 6. Ndb5 {[%emt 0:01:32]} h6 {[%emt 0:00:29]} 7. Nd6+ {[%emt 0:21:19]} Bxd6 {[%emt 0:03:27]} 8. Qxd6 {[%emt 0:00:06]} Qe7 {[%emt 0:00:26]} 9. Qd1 {[%emt 0:04:28]} O-O {[%emt 0:05:37]} 10. Bd3 {[%emt 0:17:54]} d6 {[%emt 0:16:34]} 11. Bc4 {[%emt 0:06:30]} Be6 {[%emt 0:12:33]} 12. Nd5 {[%emt 0:01:36]} Qd8 {[%emt 0:06:05]} 13. Nxf6+ {[%emt 0:01:07]} Qxf6 {[%emt 0:00:08]} 14. Bd5 {[%emt 0:00:11]} Qg6 {[%emt 0:12:01]} 15. O-O {[%emt 0:04:34]} Bh3 {[%emt 0:01:02]} 16. Qf3 {[%emt 0:01:52]} Bg4 {[%emt 0:00:07]} 17. Qd3 {[%emt 0:10:11]} Nb4 {[%emt 0:04:25]} 18. Qb3 {[%emt 0:00:17]} Nxd5 {[%emt 0:00:17]} 19. exd5 {[%emt 0:00:45]} Bf5 {[%emt 0:03:08]} 20. Qg3 {[%emt 0:10:21]} Qxg3 {[%emt 0:04:03]} 21. hxg3 {[%emt 0:00:12]} Bxc2 {[%emt 0:00:06]} 22. b3 {[%emt 0:00:06]} Rac8 {[%emt 0:04:36]} 23. Ba3 {[%emt 0:00:52]} Rfd8 {[%emt 0:00:24]} 24. Rac1 {[%emt 0:00:10]} Kf8 {[%emt 0:00:19]} 25. Rfe1 {[%emt 0:00:17]} Ke8 {[%emt 0:08:29]} 26. Re2 {[%emt 0:10:31]} Bf5 {[%emt 0:00:22]} 27. Rxc8 {[%emt 0:00:14]} Bxc8 {[%emt 0:00:06]} 28. Rc2 {[%emt 0:00:03]} Bf5 {[%emt 0:00:14]} 29. Rc7 {[%emt 0:00:33]} Rd7 {[%emt 0:00:25]} 30. Rc8+ {[%emt 0:00:14]} Ke7 {[%emt 0:00:22]} 31. Kf1 {[%emt 0:05:07]} Be4 {[%emt 0:02:11]} 32. f3 {[%emt 0:01:43]} Bxd5 {[%emt 0:00:05]} 33. g4 {[%emt 0:00:03]} Be6 {[%emt 0:02:09]} 34. Rg8 {[%emt 0:00:33]} g6 {[%emt 0:00:44]} 35. Rh8 {[%emt 0:00:05]} Rc7 {[%emt 0:00:38]} 36. Rxh6 {[%emt 0:01:12]} Rc2 {[%emt 0:00:21]} 37. Rh1 {[%emt 0:00:59]} a5 {[%emt 0:01:37]} 38. Kg1 {[%emt 0:00:28]} Rxa2 {[%emt 0:00:49]} 39. Bc1 {[%emt 0:00:04]} Bxb3 {[%emt 0:00:24]} 40. Bg5+ {[%emt 0:00:09]} f6 {[%emt 0:01:31]} 41. Rh7+ {[%emt 0:00:04]} Bf7 {[%emt 0:00:04]} 42. Be3 {[%emt 0:00:07]} a4 {[%emt 0:01:47]} 43. g5 {[%emt 0:00:06]} a3 {[%emt 0:00:26]} 44. f4 {[%emt 0:00:48]} Re2 {[%emt 0:01:22]} 45. fxe5 fxe5 {[%emt 0:00:16]} 0-1

[Event "ESP-chT 1st Division 2020"]
[Site "Padron"]
[Date "2020.10.05"]
[Round "3.23"]
[White "Korneev Leskova, Svyatoslav"]
[Black "Garcia Jimenez, Santiago"]
[Result "1-0"]
[ECO "A10"]
[WhiteElo "2170"]
[BlackElo "2203"]
[Annotator "NA"]
[PlyCount "59"]
[EventDate "2020.10.01"]
[EventType "team-tourn"]
[EventCountry "ESP"]
[SourceTitle "playchess.com"]
[Source "ChessBase"]
[SourceQuality "1"]
[TimeControl "5400+30"]

1. c4 {[%emt 0:00:00]} g6 {[%emt 0:00:00]} 2. Nc3 {[%emt 0:00:05]} Bg7 {[%emt 0:00:00]} 3. g3 {[%emt 0:00:05]} d6 {[%emt 0:00:30]} 4. Bg2 {[%emt 0:00:08]} c5 {[%emt 0:00:20]} 5. d3 {[%emt 0:00:10]} Nc6 {[%emt 0:00:12]} 6. Qd2 {[%emt 0:00:24]} e5 {[%emt 0:01:25]} 7. h4 {[%emt 0:01:35]} h6 {[%emt 0:03:41]} 8. b3 {[%emt 0:01:04]} Nge7 {[%emt 0:00:47]} 9. Bb2 {[%emt 0:00:15]} a6 {[%emt 0:02:35]} 10. e3 {[%emt 0:00:18]} Rb8 {[%emt 0:00:16]} 11. Nge2 {[%emt 0:00:42]} Nf5 {[%emt 0:06:47]} 12. h5 {[%emt 0:03:31]} g5 {[%emt 0:00:40]} 13. O-O-O {[%emt 0:02:05]} Bd7 {[%emt 0:07:11]} 14. Ne4 {[%emt 0:07:31]} Qc7 {[%emt 0:04:09]} 15. f4 {[%emt 0:15:52]} b5 {[%emt 0:20:42]} 16. N2c3 {[%emt 0:10:39]} Nfe7 {[%emt 0:10:26]} 17. fxg5 {[%emt 0:03:23]} hxg5 {[%emt 0:00:15]} 18. h6 {[%emt 0:02:45]} Bxh6 {[%emt 0:02:51]} 19. Nxg5 {[%emt 0:07:08]} Be6 {[%emt 0:10:43]} 20. Rdf1 {[%emt 0:08:33]} Nf5 {[%emt 0:03:57]} 21. Nd5 {[%emt 0:07:17]} Qd8 {[%emt 0:01:08]} 22. Nxf7 {[%emt 0:01:41]} Kxf7 {[%emt 0:03:29]} 23. g4 {[%emt 0:00:29]} Nb4 {[%emt 0:05:36]} 24. Nxb4 {[%emt 0:02:44]} cxb4 {[%emt 0:00:04]} 25. gxf5 {[%emt 0:00:14]} Bd7 {[%emt 0:00:47]} 26. Bd5+ {[%emt 0:00:18]} Kf6 {[%emt 0:00:25]} 27. d4 {[%emt 0:02:35]} Qe7 {[%emt 0:03:30]} 28. Be6 {[%emt 0:01:30]} Bc6 {[%emt 0:00:30]} 29. dxe5+ {[%emt 0:00:08]} dxe5 {[%emt 0:00:59]} 30. Bxe5+ {[%emt 0:00:21]} 1-0

[Event "ESP-chT 1st Division 2020"]
[Site "Padron"]
[Date "2020.10.05"]
[Round "3.24"]
[White "Perera Borrego, Maria Adela"]
[Black "San Juan Morigosa, Isaura"]
[Result "1-0"]
[ECO "A40"]
[WhiteElo "2221"]
[BlackElo "1766"]
[Annotator "NA"]
[PlyCount "51"]
[EventDate "2020.10.01"]
[EventType "team-tourn"]
[EventCountry "ESP"]
[SourceTitle "playchess.com"]
[Source "ChessBase"]
[SourceQuality "1"]
[TimeControl "5400+30"]

1. d4 {[%emt 0:00:00]} g6 {[%emt 0:00:00]} 2. Nf3 {[%emt 0:00:00]} Bg7 {[%emt 0:00:00]} 3. g3 {[%emt 0:00:00]} Nf6 {[%emt 0:00:00]} 4. Bg2 {[%emt 0:00:02]} O-O {[%emt 0:00:02]} 5. O-O {[%emt 0:00:10]} d6 {[%emt 0:00:13]} 6. c4 {[%emt 0:00:15]} c6 {[%emt 0:00:33]} 7. Nc3 {[%emt 0:00:24]} Qc7 {[%emt 0:01:43]} 8. e4 {[%emt 0:02:08]} a5 {[%emt 0:00:21]} 9. h3 {[%emt 0:01:19]} e5 {[%emt 0:00:25]} 10. Be3 {[%emt 0:01:19]} Na6 {[%emt 0:05:06]} 11. Qd2 {[%emt 0:04:41]} Re8 {[%emt 0:00:17]} 12. Rfe1 {[%emt 0:06:39]} Nh5 {[%emt 0:00:33]} 13. Bh6 {[%emt 0:14:53]} Bh8 {[%emt 0:00:06]} 14. Rad1 {[%emt 0:00:29]} f5 {[%emt 0:21:39]} 15. exf5 {[%emt 0:01:57]} gxf5 {[%emt 0:00:06]} 16. Qg5+ {[%emt 0:01:51]} Ng7 {[%emt 0:00:07]} 17. dxe5 {[%emt 0:00:51]} dxe5 {[%emt 0:00:50]} 18. Nxe5 {[%emt 0:08:07]} Nc5 {[%emt 0:00:19]} 19. Ng4 {[%emt 0:10:04]} Rxe1+ {[%emt 0:12:06]} 20. Rxe1 {[%emt 0:00:08]} Nce6 {[%emt 0:08:21]} 21. Nf6+ {[%emt 0:07:12]} Kf7 {[%emt 0:00:42]} 22. Qh4 {[%emt 0:01:06]} Kg6 {[%emt 0:06:05]} 23. g4 {[%emt 0:13:27]} Nc5 {[%emt 0:26:10]} 24. Qg5+ {[%emt 0:01:39]} Kf7 {[%emt 0:00:06]} 25. Bxg7 {[%emt 0:00:17]} Bxg7 {[%emt 0:00:13]} 26. Qxg7+ {[%emt 0:00:22]} 1-0

[Event "ESP-chT 1st Division 2020"]
[Site "Padron"]
[Date "2020.10.06"]
[Round "4.6"]
[White "Chacon Perez, Juan"]
[Black "Gracia Laguens, Asuncion"]
[Result "1-0"]
[ECO "B23"]
[WhiteElo "2141"]
[BlackElo "1414"]
[Annotator "ChessBase"]
[PlyCount "63"]
[EventDate "2020.10.01"]
[EventType "team-tourn"]
[EventCountry "ESP"]
[SourceTitle "playchess.com"]
[Source "ChessBase"]
[SourceQuality "1"]
[TimeControl "5400+30"]

1. e4 {[%emt 0:00:00]} c5 {[%emt 0:03:03]} 2. Nc3 {[%emt 0:00:00]} e6 {[%emt 0:01:10]} 3. Nf3 {[%emt 0:00:12]} d6 {[%emt 0:01:02]} 4. d4 {[%emt 0:00:30]} cxd4 {[%emt 0:01:20]} 5. Nxd4 {[%emt 0:00:09]} a6 {[%emt 0:01:31]} 6. Be3 {[%emt 0:01:08]} Nf6 {[%emt 0:01:00]} 7. g4 {[%emt 0:03:18]} g6 {[%emt 0:07:25]} 8. g5 {[%emt 0:02:46]} Nfd7 {[%emt 0:01:56]} 9. Qd2 {[%emt 0:01:39]} b5 {[%emt 0:01:57]} 10. f4 {[%emt 0:04:22]} Nc5 {[%emt 0:05:12]} 11. Bg2 {[%emt 0:02:40]} Bb7 {[%emt 0:04:07]} 12. a3 {[%emt 0:00:55]} Bg7 {[%emt 0:05:06]} 13. O-O {[%emt 0:05:25]} Nbd7 {[%emt 0:03:06]} 14. b4 {[%emt 0:00:25]} Na4 {[%emt 0:04:42]} 15. Nxa4 {[%emt 0:00:27]} bxa4 {[%emt 0:01:30]} 16. f5 {[%emt 0:04:43]} e5 {[%emt 0:02:47]} 17. Ne2 {[%emt 0:05:55]} Qc7 {[%emt 0:02:55]} 18. Ng3 {[%emt 0:12:14]} Rc8 {[%emt 0:05:15]} 19. c4 {[%emt 0:08:19]} O-O {[%emt 0:05:48]} 20. f6 {[%emt 0:00:19]} Bh8 {[%emt 0:00:27]} 21. Rfc1 {[%emt 0:01:04]} Bxf6 {[%emt 0:00:57]} 22. gxf6 {[%emt 0:01:26]} Nxf6 {[%emt 0:00:14]} 23. c5 {[%emt 0:02:10]} Rfd8 {[%emt 0:04:20]} 24. cxd6 {[%emt 0:01:51]} Qxd6 {[%emt 0:00:54]} 25. Qxd6 {[%emt 0:01:47]} Rxd6 {[%emt 0:04:02]} 26. Rxc8+ {[%emt 0:00:43]} Bxc8 {[%emt 0:01:09]} 27. Rc1 {[%emt 0:00:27]} Be6 {[%emt 0:01:27]} 28. Bf1 {[%emt 0:00:36]} h5 {[%emt 0:01:52]} 29. h4 {[%emt 0:01:08]} Ng4 {[%emt 0:00:31]} 30. Bc5 {[%emt 0:00:11]} Rd2 {[%emt 0:01:10]} 31. Bxa6 {[%emt 0:00:42]} Nf2 {[%emt 0:00:40]} 32. Bxf2 {[%emt 0:00:06]} 1-0

[Event "ESP-chT 1st Division 2020"]
[Site "Padron"]
[Date "2020.10.06"]
[Round "4.12"]
[White "San Juan Morigosa, Isaura"]
[Black "Rodrigo Yanguas, Maria"]
[Result "0-1"]
[ECO "A58"]
[WhiteElo "1766"]
[BlackElo "2077"]
[Annotator "ChessBase"]
[PlyCount "74"]
[EventDate "2020.10.01"]
[EventType "team-tourn"]
[EventCountry "ESP"]
[SourceTitle "playchess.com"]
[Source "ChessBase"]
[SourceQuality "1"]
[TimeControl "5400+30"]

1. d4 {[%emt 0:00:00]} Nf6 {[%emt 0:00:10]} 2. c4 {[%emt 0:00:00]} c5 {[%emt 0:00:46]} 3. d5 {[%emt 0:00:00]} b5 {[%emt 0:00:32]} 4. cxb5 {[%emt 0:00:00]} a6 {[%emt 0:00:14]} 5. bxa6 {[%emt 0:00:08]} g6 {[%emt 0:00:28]} 6. Nc3 {[%emt 0:00:13]} Bg7 {[%emt 0:00:20]} 7. e4 {[%emt 0:02:44]} O-O {[%emt 0:00:14]} 8. Nf3 {[%emt 0:02:51]} Qa5 {[%emt 0:00:17]} 9. Bd2 {[%emt 0:04:39]} Bxa6 {[%emt 0:01:12]} 10. Bxa6 {[%emt 0:00:10]} Qxa6 {[%emt 0:00:11]} 11. Qe2 {[%emt 0:01:43]} e6 {[%emt 0:01:36]} 12. Qxa6 {[%emt 0:06:37]} Nxa6 {[%emt 0:00:14]} 13. dxe6 {[%emt 0:00:09]} fxe6 {[%emt 0:00:31]} 14. O-O {[%emt 0:00:08]} d5 {[%emt 0:03:51]} 15. exd5 {[%emt 0:13:27]} exd5 {[%emt 0:00:17]} 16. Bg5 {[%emt 0:19:24]} d4 {[%emt 0:07:28]} 17. Bxf6 {[%emt 0:03:32]} Rxf6 {[%emt 0:03:23]} 18. Ne4 {[%emt 0:00:06]} Rc6 {[%emt 0:09:53]} 19. Rfd1 {[%emt 0:05:18]} Re8 {[%emt 0:03:02]} 20. Ng3 {[%emt 0:03:20]} Rd8 {[%emt 0:10:20]} 21. b3 {[%emt 0:04:46]} Nb4 {[%emt 0:01:39]} 22. a4 {[%emt 0:00:50]} Nd5 {[%emt 0:04:56]} 23. Rac1 {[%emt 0:05:01]} Nf4 {[%emt 0:14:07]} 24. Kf1 {[%emt 0:01:37]} Ne6 {[%emt 0:01:15]} 25. Rc4 {[%emt 0:04:19]} Rb8 {[%emt 0:02:44]} 26. Nd2 {[%emt 0:00:14]} Nf4 {[%emt 0:02:35]} 27. Nge4 {[%emt 0:00:52]} Nd3 {[%emt 0:00:32]} 28. Rb1 {[%emt 0:01:44]} Bf8 {[%emt 0:00:29]} 29. g3 {[%emt 0:00:41]} Ne5 {[%emt 0:02:17]} 30. f4 {[%emt 0:16:38]} Nxc4 {[%emt 0:00:26]} 31. Nxc4 {[%emt 0:00:05]} Re6 {[%emt 0:01:07]} 32. Ne5 {[%emt 0:00:28]} c4 {[%emt 0:02:48]} 33. Ng5 {[%emt 0:00:57]} Rxe5 {[%emt 0:07:00]} 34. fxe5 {[%emt 0:00:14]} Rxb3 {[%emt 0:02:01]} 35. Ra1 {[%emt 0:00:51]} c3 {[%emt 0:01:53]} 36. Ke2 {[%emt 0:00:02]} c2 {[%emt 0:01:18]} 37. e6 {[%emt 0:02:45]} Rb1 {[%emt 0:00:45]} 0-1

[Event "ESP-chT 1st Division 2020"]
[Site "Padron"]
[Date "2020.10.07"]
[Round "5.21"]
[White "Garrido Outon, Alex"]
[Black "Almagro Llamas, Pablo"]
[Result "1/2-1/2"]
[ECO "B10"]
[WhiteElo "2366"]
[BlackElo "2429"]
[Annotator "RC"]
[PlyCount "79"]
[EventDate "2020.10.01"]
[EventType "team-tourn"]
[EventCountry "ESP"]
[SourceTitle "playchess.com"]
[Source "ChessBase"]
[SourceQuality "1"]
[TimeControl "5400+30"]

1. e4 {[%emt 0:00:00]} c6 {[%emt 0:00:00]} 2. Nc3 {[%emt 0:00:00]} d5 {[%emt 0:00:05]} 3. Nf3 {[%emt 0:00:19]} dxe4 {[%emt 0:01:22]} 4. Nxe4 {[%emt 0:00:18]} Nf6 {[%emt 0:01:09]} 5. Qe2 {[%emt 0:00:28]} Qd5 {[%emt 0:02:20]} 6. Nxf6+ {[%emt 0:03:39]} gxf6 {[%emt 0:00:27]} 7. g3 {[%emt 0:10:11]} Na6 {[%emt 0:07:27]} 8. d3 {[%emt 0:07:41]} Nb4 {[%emt 0:24:28]} 9. Bg2 {[%emt 0:32:20]} Bg4 {[%emt 0:02:37]} 10. Kd1 {[%emt 0:02:54]} e5 {[%emt 0:04:32]} 11. h3 {[%emt 0:08:06]} Be6 {[%emt 0:05:17]} 12. Bd2 {[%emt 0:01:10]} O-O-O {[%emt 0:09:24]} 13. a3 {[%emt 0:01:10]} Na6 {[%emt 0:14:10]} 14. Kc1 {[%emt 0:06:40]} Nc5 {[%emt 0:03:59]} 15. Nh4 {[%emt 0:03:11]} Qd7 {[%emt 0:00:54]} 16. g4 {[%emt 0:01:21]} h5 {[%emt 0:02:19]} 17. gxh5 {[%emt 0:06:03]} Be7 {[%emt 0:04:03]} 18. h6 {[%emt 0:02:00]} Qd4 {[%emt 0:11:05]} 19. Nf3 {[%emt 0:02:07]} Qa4 {[%emt 0:00:06]} 20. Be3 {[%emt 0:04:20]} e4 {[%emt 0:00:53]} 21. dxe4 {[%emt 0:01:23]} Qxe4 {[%emt 0:02:46]} 22. Ne1 {[%emt 0:01:57]} Qa4 {[%emt 0:00:32]} 23. Nd3 {[%emt 0:01:23]} Nxd3+ {[%emt 0:00:23]} 24. cxd3 {[%emt 0:00:02]} f5 {[%emt 0:00:37]} 25. Qc2 {[%emt 0:02:12]} Bb3 {[%emt 0:00:40]} 26. Qc3 {[%emt 0:00:01]} f4 {[%emt 0:00:16]} 27. Bd2 {[%emt 0:00:34]} Rxh6 {[%emt 0:00:25]} 28. Be4 {[%emt 0:00:12]} Rh5 {[%emt 0:00:47]} 29. Kb1 {[%emt 0:01:21]} Rc5 {[%emt 0:00:47]} 30. Qb4 {[%emt 0:00:01]} Rc1+ {[%emt 0:00:38]} 31. Rxc1 {[%emt 0:00:01]} Bxb4 {[%emt 0:00:07]} 32. axb4 {[%emt 0:00:10]} Qb5 {[%emt 0:00:04]} 33. Rxa7 {[%emt 0:02:07]} Rxd3 {[%emt 0:01:16]} 34. Ra5 {[%emt 0:00:29]} Qxa5 {[%emt 0:00:26]} 35. bxa5 {[%emt 0:00:07]} Rxd2 {[%emt 0:00:05]} 36. f3 {[%emt 0:00:59]} Rh2 {[%emt 0:00:48]} 37. Rc3 {[%emt 0:00:37]} Rh1+ {[%emt 0:00:23]} 38. Rc1 {[%emt 0:00:01]} Rh2 {[%emt 0:00:21]} 39. a6 {[%emt 0:01:21]} bxa6 {[%emt 0:00:12]} 40. Bxc6 {[%emt 0:00:31]} 1/2-1/2

[Event "ESP-chT 1st Division 2020"]
[Site "Padron"]
[Date "2020.10.08"]
[Round "6.3"]
[White "Quintin Navarro, Alberto"]
[Black "Almagro Llamas, Pablo"]
[Result "1-0"]
[ECO "A10"]
[WhiteElo "2383"]
[BlackElo "2429"]
[Annotator "RC"]
[PlyCount "69"]
[EventDate "2020.10.01"]
[EventType "team-tourn"]
[EventCountry "ESP"]
[SourceTitle "playchess.com"]
[Source "ChessBase"]
[SourceQuality "1"]
[TimeControl "5400+30"]

1. c4 {[%emt 0:00:00]} b6 {[%emt 0:00:14]} 2. Nc3 {[%emt 0:02:46]} Bb7 {[%emt 0:00:37]} 3. d4 {[%emt 0:00:47]} e6 {[%emt 0:01:01]} 4. a3 {[%emt 0:00:24]} Nf6 {[%emt 0:03:17]} 5. d5 {[%emt 0:01:42]} exd5 {[%emt 0:12:00]} 6. cxd5 {[%emt 0:00:10]} Bd6 {[%emt 0:02:15]} 7. g3 {[%emt 0:02:45]} O-O {[%emt 0:01:43]} 8. Bg2 {[%emt 0:00:24]} Re8 {[%emt 0:02:56]} 9. Nh3 {[%emt 0:01:48]} Na6 {[%emt 0:05:36]} 10. O-O {[%emt 0:03:39]} c5 {[%emt 0:12:25]} 11. Re1 {[%emt 0:12:22]} c4 {[%emt 0:11:49]} 12. Nb5 {[%emt 0:10:05]} Bb8 {[%emt 0:14:02]} 13. Qd4 {[%emt 0:11:51]} Be5 {[%emt 0:08:23]} 14. Qxc4 {[%emt 0:01:15]} Rc8 {[%emt 0:00:09]} 15. Qd3 {[%emt 0:05:18]} Nc5 {[%emt 0:01:39]} 16. Qd1 {[%emt 0:01:05]} a6 {[%emt 0:00:12]} 17. Nc3 {[%emt 0:01:00]} Bxc3 {[%emt 0:00:13]} 18. bxc3 {[%emt 0:00:04]} Nce4 {[%emt 0:00:20]} 19. d6 {[%emt 0:05:32]} Nxc3 {[%emt 0:01:00]} 20. Qd3 {[%emt 0:00:30]} Bxg2 {[%emt 0:01:54]} 21. Kxg2 {[%emt 0:00:06]} Rc6 {[%emt 0:04:11]} 22. Bf4 {[%emt 0:05:27]} Qa8 {[%emt 0:09:59]} 23. f3 {[%emt 0:04:08]} h6 {[%emt 0:00:45]} 24. Rac1 {[%emt 0:02:03]} Nfd5 {[%emt 0:01:52]} 25. e4 {[%emt 0:02:14]} Nxf4+ {[%emt 0:00:08]} 26. Nxf4 {[%emt 0:00:06]} Nb5 {[%emt 0:00:08]} 27. Nd5 {[%emt 0:02:50]} Rxc1 {[%emt 0:02:43]} 28. Rxc1 {[%emt 0:00:06]} Re6 {[%emt 0:00:53]} 29. a4 {[%emt 0:01:11]} Nxd6 {[%emt 0:00:33]} 30. Nf4 {[%emt 0:02:08]} Nb7 {[%emt 0:01:22]} 31. Nxe6 {[%emt 0:00:19]} dxe6 {[%emt 0:00:02]} 32. a5 {[%emt 0:02:45]} Nc5 {[%emt 0:01:06]} 33. Qc4 {[%emt 0:01:49]} Qd8 {[%emt 0:00:24]} 34. Qc2 {[%emt 0:02:54]} Nd7 {[%emt 0:00:38]} 35. Qc8 {[%emt 0:00:14]} 1-0